Workbook

Sheet USER_GUIDE
C2: About the Thresholds for Rapid Transit Mode Selection Tool
C4: Purpose
C5: This Rapid Transit Alternative Assessment Tool provides assistance in evaluating the two key components of transit planning: (1) Selection of Transit Mode - Bus or Rail; and (2) Selection of the Operating Environment - Partially or fully segregated ROW. The ability of a transit service to fulfill the mobility needs of the population will ultimately depend on the quality of implementation and the operational system.
C10: References
C11: AS-H02 - HOW TO UNDERTAKE RAPID TRANSIT ALTERNATIVE ASSESSMENT
C12: Agarwal, O. P., Gouthami Padam, Aroha Bahuguna, and Salvador Pena. 2014. Urban Transport Data Analysis Tool (UT-DAT) : user's manual (English). Energy Sector Management Assistance Program (ESMAP). Washington, DC: World Bank Group. http://documents.worldbank.org/curated/en/395261468147569317/Urban-Transport-Data-Analysis-Tool-UT-DAT-users-manual.
C13: n.d. Global BRT Data. Accessed 08 20, 2018. https://brtdata.org/.
C14: Moccia, Luigi, Duncan W Allen, and Eric C Bruun. 2018. "A Technology Selection and Design Model of a Semi-Rapid Transit Line." Researchgate .
C15: Reilly, Jack, and Herbert Levinson. 2011. Public Transport Capacity Analysis Procedures for Developing Cities. Washington DC: The International Bank for Reconstruction and Development / The World Bank.
C16: Vuchic, Vukan R. 1981. Urban Public Transportation Systems and Technology. Englewood Cliffs, NJ.
C18: How to Use This Tool?
C20: STEP 1: Selecting the appropriate TAB for your needs
C22: (A) INITAL ASSESSMENT: This tab should be used by cities who are in the initial stages of transit planning and would like to carry out a quick assessment of the most appropriate transit technology and operating environment options for the city. It will require the city to provide generalized data that should be readily available and the objectives for transit planning.
C27: (B) DETAILED EVALUATION This tab should be used by cities who have defined one or more specific corridors and are looking for an assessment for a particular corridor for which there is a reliable estimate of demand from a travel demand model or other source. This tool provides a generalized evaluation based on best practices and criteria, and will not necessarily idetnify only a single mode as being most appropriate. The city should also evaluate the alternatives with respect to context-specific goals and objectives.
C33: STEP 2: ASSUMPTIONS and Thresholds
C35: The tool contains all the assumptions used in the tool. Most of the assumptions and thresholds are based on typical global transit standards and best practices or acceptable thresholds where essential. In some cases, historic evidence from low and middle income countries is used to define thresholds.
C39: STEP 3: DATA Inputs and RESULTS
C41: Within each TAB, at the very top you will find a reference to the data needs, minimum quality requirements and possible sources for each data item. When you have the required data ready, you can fill in the data in the yellow shaded input cells, or select the inputs from the drop-down menu in the orange shaded box. The grey boxes include calculations and should not be edited. As soon as the data inputs are entered, the tool will automatically populate the results. | K41: Example Orange Input Selection Box
K44: Example Yellow Input Entry Box
K47: Example of Calculation
C50: In addition to the above, the tool also provides a GLOSSARY of Terminologies and Description of Results.
C52: How to Read the Results?
C53: The results of the tool should be used not as direct recommendations but as preliminary guidance on appropriate mode(s) for the city, given prevailing conditions of population density and travel habits. The tool provides suggestions at higher and lower cases of Passenger Traffic Density (PTD), which allows for a more nuanced reading. For instance, if the INITIAL ASSESSMENT tool suggests that rail is COMPETITIVE for the whole network where bus is FAVORABLE, it may well be that part of the network would be better off as rail. Mixed results could be interpreted in some instances to indicate a mixed-mode solution warranting at least DETAILED consideration by corridor. If PTD is known by segment/corridor, the DETAILED EVALUATION tool could be used to explore the particular segment that will work better as rail. In effect, both tools together could be used to assign segments of a large notional network to either rapid (BRT A or Metro) or semirapid (BRT or LRT).

Sheet INITIAL Assessment
B2: Initial Mode Assessment Tool
B4: This tool is intended to help cities make an initial assessment among a set of modes that should be considered for the Alternative Analysis. The tool is designed to use data that are readily available to assess potential rapid transit modes that differ by technology and right-of-way.
B7: DATA INPUTS
A8: A | B8: DATA Inputs - Existing and Projected Demographic Profile
A9: 1 | B9: Enter the Local Transit Service Area | D9: 3000 | E9: Sq. km
A10: 2 | B10: Enter the Local Transit Service Area Population | D10: 23305971 | E10: Projected population may be used for horizon year, where available
A12: B | B12: DATA Inputs - Existing Transit Characteristics
A13: 3 | B13: Annual Local Public Transit Boardings in the Service Area | D13: 3088800000 | E13: Number of unlinked trips made by local public transit modes annually. Multiply daily trip by 300
A14: 4 | B14: Mean Local Public Transport Trip Length | D14: 4 | E14: km
A15: 5 | B15: Enter existing Maximum Peak Hour Person-Traffic Per Direction along any corridor | D15: 0 | E15: Pass/peakhour/dir
A16: 6 | B16: Enter the Historical Daily Traffic Peak Hour Factor?* | D16: 0.06 | E16: The ratio of PHPD passenger volume at the maxium load point for a typical route to its total daily boardngs in both directions
A19: C | B19: DATA Estimations | D19: Higher Case | E19: Lower Case
A20: 7 | B20: Average Current Population Density for the Local Transit Service Area | D20: =D10/D9 -> 7768.657 | E20: =D10/D9 -> 7768.657 | F20: Pop/Sq.km
A21: 8 | B21: Local Public Transport Annual Passenger-km Traveled | D21: =D13*D14 -> 12355200000 | E21: =D13*D14 -> 12355200000 | F21: Passenger-km
A22: 9 | B22: Post-Rapid passenger-km per square km | D22: =1.8*D21/D9 -> 7413120 | E22: =1.4*E21/D9 -> 5765760 | F22: Passenger-km/sqkm
A23: 10 | B23: Gross Post-Rapid passenger-km | D23: =$D$9*D22 -> 22239360000 | E23: =$D$9*E22 -> 17297280000 | F23: Passenger-km
A24: 11 | B24: Notional network route km per square km | D24: =0.6*EXP(1.735-0.28*LN($D$9))*EXP(-11.131+0.559*LN(D20)+0.327*LN(D22)) -> 0.1396754465 | E24: =1.275*EXP(1.735-0.28*LN($D$9))*EXP(-11.131+0.559*LN(E20)+0.327*LN(E22)) -> 0.2733938628 | F24: route-km/Sq.km
A25: 12 | B25: Notional network route kilometres | D25: =D24*$D$9 -> 419.0263395 | E25: =E24*$D$9 -> 820.1815885 | F25: Km
A26: 13 | B26: Notional Average Rapid Transit Trip Length | D26: =2+0.165*($D$14^1.325)*(D25^0.286) -> 7.82337089 | E26: =2+0.165*($D$14^1.325)*(E25^0.286) -> 9.056538207 | F26: Km
A27: 14 | B27: Rapid transit share of gross Transit PKT | D27: =1/(1+EXP(5.235-0.5-0.43197*LN(D22)+0.0926*LN(D20))) -> 0.7805258592 | E27: =1/(1+EXP(5.235+0.55-0.43197*LN(E22)+0.0926*LN(E20))) -> 0.5275154638 | F27: Percentage
A28: 15 | B28: Rapid transit passenger-km | D28: =D27*D23 -> 1.735839557e+10 | E28: =E27*E23 -> 9124582682 | F28: Passenger-km
A29: 16 | B29: Notional Annual Rapid Transit Boardings | D29: =D28/D26 -> 2218787249 | E29: =E28/E26 -> 1007513299
A30: 17 | B30: Indicative Passenger Traffic Density | D30: =D28/D25 -> 41425547.6 | E30: =E28/E25 -> 11125076.21 | F30: Passenger-km/route-km
A31: 18 | B31: Notional Number of Routes | D31: =MAX(1,0.85*EXP(-1.248+0.837*LN(D25)-0.156*LN(D9))) -> 10.95984681 | E31: =MAX(1,0.85*EXP(-1.248+0.837*LN(E25)-0.156*LN(D9))) -> 19.22787012
A32: 19 | B32: Notional Peak Passenger Demand based on Peak Hour Factor | D32: =MAX($D15,($D$16*D29/(D31*300))) -> 40489.38433 | E32: =MAX($D15,($D$16*E29/(E31*300))) -> 10479.71816 | F32: Person/hour/dir
B34: INITIAL SET OF ROUTE AND MODE RECOMMENDATIONS
A36: 1 | B36: Mode Alternatives | D36: Bus | G36: Rail
A37: 2 | B37: Mode-Service Type | D37: BRT Rapid | E37: BRT Semi-Rapid 1 | F37: BRT Semi-Rapid 2 | G37: LRT Semi-Rapid | H37: Metro/ Rail Rapid Transit
A38: 3 | B38: HIGHER CASE: Is the Mode Favorable for Higher Notional Peak Passenger Demands? | D38: =VLOOKUP($D$32/'Assumptions and Thresholds'!$G$16,'Drop-Down Values'!$K$11:$L$15,2) -> OVER CAPACITY | E38: =VLOOKUP($D$32/'Assumptions and Thresholds'!$G$17,'Drop-Down Values'!$K$11:$L$15,2) -> OVER CAPACITY | F38: =VLOOKUP($D$32/'Assumptions and Thresholds'!$G$18,'Drop-Down Values'!$K$11:$L$15,2) -> OVER CAPACITY | G38: =VLOOKUP($D$32/'Assumptions and Thresholds'!$G$19,'Drop-Down Values'!$K$11:$L$15,2) -> OVER CAPACITY | H38: =VLOOKUP($D$32/'Assumptions and Thresholds'!$G$20,'Drop-Down Values'!$K$11:$L$15,2) -> FAVORABLE
A39: 4 | B39: HIGHER CASE: Is the Mode Cost Efficient at Higher Passenger Traffic Density? | D39: =IF($D$30/1000000>'Demand and Cost Thresholds'!$E25,'Drop-Down Values'!$L$6,VLOOKUP(D52/'Demand and Cost Thresholds'!$B24,'Drop-Down Values'!$K$2:$L$5,2)) -> OVER CAPACITY | E39: =IF($D$30/1000000>'Demand and Cost Thresholds'!$E26,'Drop-Down Values'!$L$6,VLOOKUP(E52/'Demand and Cost Thresholds'!$B24,'Drop-Down Values'!$K$2:$L$5,2)) -> OVER CAPACITY | F39: =IF($D$30/1000000>'Demand and Cost Thresholds'!$E26,'Drop-Down Values'!$L$6,VLOOKUP(F52/'Demand and Cost Thresholds'!$B24,'Drop-Down Values'!$K$2:$L$5,2)) -> OVER CAPACITY | G39: =IF($D$30/1000000>'Demand and Cost Thresholds'!$E27,'Drop-Down Values'!$L$6,VLOOKUP(G52/'Demand and Cost Thresholds'!$B24,'Drop-Down Values'!$K$2:$L$5,2)) -> OVER CAPACITY | H39: =IF($D$30/1000000>'Demand and Cost Thresholds'!$E28,'Drop-Down Values'!$L$6,VLOOKUP(H52/'Demand and Cost Thresholds'!$B24,'Drop-Down Values'!$K$2:$L$5,2)) -> FAVORABLE
A40: 5 | B40: LOWER CASE: Is the Mode Favorable for Lower Notional Peak Passenger Demands? | D40: =VLOOKUP($E$32/'Assumptions and Thresholds'!$G$16,'Drop-Down Values'!$K$11:$L$15,2) -> FAVORABLE | E40: =VLOOKUP($E$32/'Assumptions and Thresholds'!$G$17,'Drop-Down Values'!$K$11:$L$15,2) -> FAVORABLE | F40: =VLOOKUP($E$32/'Assumptions and Thresholds'!$G$18,'Drop-Down Values'!$K$11:$L$15,2) -> OVER CAPACITY | G40: =VLOOKUP($E$32/'Assumptions and Thresholds'!$G$19,'Drop-Down Values'!$K$11:$L$15,2) -> FAVORABLE | H40: =VLOOKUP($E$32/'Assumptions and Thresholds'!$G$20,'Drop-Down Values'!$K$11:$L$15,2) -> MARGINAL
A41: 6 | B41: LOWER CASE: Is the Mode Cost Efficient at Lower Passenger Traffic Density? | D41: =IF($E$30/1000000>'Demand and Cost Thresholds'!$E25,'Drop-Down Values'!$L$6,VLOOKUP(D53/'Demand and Cost Thresholds'!$C24,'Drop-Down Values'!$K$2:$L$5,2)) -> FAVORABLE | E41: =IF($E$30/1000000>'Demand and Cost Thresholds'!$E26,'Drop-Down Values'!$L$6,VLOOKUP(E53/'Demand and Cost Thresholds'!$C24,'Drop-Down Values'!$K$2:$L$5,2)) -> FAVORABLE | F41: =IF($E$30/1000000>'Demand and Cost Thresholds'!$E26,'Drop-Down Values'!$L$6,VLOOKUP(F53/'Demand and Cost Thresholds'!$C24,'Drop-Down Values'!$K$2:$L$5,2)) -> FAVORABLE | G41: =IF($E$30/1000000>'Demand and Cost Thresholds'!$E27,'Drop-Down Values'!$L$6,VLOOKUP(G53/'Demand and Cost Thresholds'!$C24,'Drop-Down Values'!$K$2:$L$5,2)) -> COMPETITIVE | H41: =IF($E$30/1000000>'Demand and Cost Thresholds'!$E28,'Drop-Down Values'!$L$6,VLOOKUP(H53/'Demand and Cost Thresholds'!$C24,'Drop-Down Values'!$K$2:$L$5,2)) -> COMPETITIVE
A42: 7 | B42: MODE CHARACTERISTICS
B43: ROW Options | D43: Physically separated busway or segregated bus lanes with continuous passing lane. Max vehicle length 24m | E43: Dedicated at-grade lanes with passing lane at stations and 'spot' priority features. Max vehicle length 24m | F43: Dedicated at-grade BRT lane with general traffic turns allowed at signals. Max vehicle length 18m | G43: Dedicated tracks at grade. Maximum train length 150m | H43: Elevated double track, maximum train length
B44: Vehicle Set | D44: Standard, articulated or double articulated buses on elevated busway with platform level boarding. | E44: Standard, articulated or double articulated buses with platform level boarding | F44: Standard or articulated buses with platform level boarding | G44: Single-articulated low-floor vehicles in single- or multiple-unit trains | H44: High platform cars operating in multiple-unit trains
B45: Propulsion | D45: Combustion/Hybrid | E45: Combustion/Hybrid | F45: Combustion/Hybrid | G45: Electric | H45: Electric
B46: Typical Vehicle Capacity (fully loaded) | D46: 80-220 | E46: 80-150 | F46: 80-150 | G46: 215 | H46: 180-280
B47: Typical Consist (Vehicles per Scheduled Unit) | D47: 1 | E47: 1 | F47: 1 | G47: 1-4 | H47: 2-12
B48: Maximum Effective Scheduled Unit Capacity | D48: 172 | E48: 172 | F48: 116 | G48: 657 | H48: 1637
B49: Typical Headways (minutes) | D49: 1-3 | E49: 4-8 | F49: 4-8 | G49: 5-10 | H49: 2-5
B50: Typical Urban Stop Spacing (km) | D50: 0.8-2km | E50: 0.6-1.5km | F50: 0.6-1.5km | G50: 0.6-1.5km | H50: 0.8-2km
B51: Transfers Possible | D51: At Key Hubs | E51: At Key Hubs | F51: At Key Hubs | G51: Yes | H51: Yes
B52: Indicative Total Annualized Cost per passenger-km at high PTD | D52: ='Assumptions and Thresholds'!M16 -> 0.318008095 | E52: ='Assumptions and Thresholds'!M17 -> 0.361591847 | F52: ='Assumptions and Thresholds'!M18 -> 0.361591847 | G52: ='Assumptions and Thresholds'!M19 -> 0.3692912426 | H52: ='Assumptions and Thresholds'!M20 -> 0.3374931897
B53: Indicative Total Annualized Cost per passenger-km at low PTD | D53: ='Assumptions and Thresholds'!N16 -> 0.4301316392 | E53: ='Assumptions and Thresholds'!N17 -> 0.4325871764 | F53: ='Assumptions and Thresholds'!N18 -> 0.4325871764 | G53: ='Assumptions and Thresholds'!N19 -> 0.4775939644 | H53: ='Assumptions and Thresholds'!N20 -> 0.4787372742
B54: Typical Average Operating Speed (km/hr) | D54: 50 | E54: 30 | F54: 25 | G54: 30 | H54: 50
B55: Flexibility | D55: V. Low | E55: Moderate | F55: Moderate | G55: Low | H55: V. Low
B56: Potential to Influence Development | D56: Excellent | E56: Good | F56: Fair | G56: Good | H56: Excellent

Sheet DETAILED Evaluation
B2: Corridor-specific Detailed Mode Evaluation Tool
B4: This tool is intended to help cities determine the most appropriate mode alternatives for a specific corridor. The tool is designed to use data that represent an informed opinion as to the extent of demand in the corridor with rapid transit in place. Please copy the tab for use for every different corridor. The final selection of Mode Alternative should be based on context-specific criteria, which can be more important than a small numerical difference in the Evaluation Score.
B10: DATA INPUTS
A11: A | B11: DATA Inputs - Projected Transit Corridor Characteristics
A12: 1 | B12: What is the Length of the Planned Corridor? | D12: 22 | E12: in Km
A13: 2 | B13: What are the Projected Annual Passenger Boardings for the planned Corridor in the Available ROW? | D13: =40350*300 -> 12105000 | E13: boardings
A14: 3 | B14: What is the Projected Maximum Peak Hour Peak Direction Passenger Demand along the Corridor? | D14: 10000 | E14: Persons/hour/dir
A15: 4 | B15: What is the type of ROW Availability? | D15: A | E15: ROW Class A = fully grade-separated ROW, Class B = at-grade lane separation, Class C = mixed traffic. The estimated annual Passenger Boardings should be consistent with the operating characteristics of the ROW
A17: B | B17: Qualitative Assessment
A18: 5 | B18: Is there an electrified regional rail in the metro area? | D18: YES
A19: 6 | B19: Is there a local electrified rail (streetcar or tram) in the metro area? | D19: NO
A20: 7 | B20: Are articulated buses operated in the local service in the metro area? | D20: NO
A21: 8 | B21: Do exclusive bus lanes exist in the metro area? | D21: YES
A22: 9 | B22: Is there metro elsewhere in the country | D22: YES
A23: 10 | B23: Is there BRT semi-rapid elsewhere in the country | D23: YES
A24: 11 | B24: Is there BRT rapid elsewhere in the country | D24: YES
A26: B | B26: DATA Estimations - Projected Transit Corridor Characteristics | D26: Higher Case | E26: Lower Case
A27: 12 | B27: Indicative Average Trip Length | D27: ='Demand and Cost Thresholds'!B19 -> 12.29127184 | E27: ='Demand and Cost Thresholds'!C19 -> 5.861127998 | F27: in Km
A28: 13 | B28: Indicative Passenger Traffic Density (in millions) | D28: =$D$13*D27/(1000000*$D$12) -> 6.762992982 | E28: =$D$13*E27/(1000000*$D$12) -> 3.224952474 | F28: Passenger-km/route-km
B30: MODE EVALUATION
B31: Mode Characteristics
D32: Mode Option 1 | E32: Mode Option 2 | F32: Mode Option 3
A33: 1 | B33: Select Mode Options | D33: BRT Rapid | E33: BRT Semi-Rapid 1 | F33: BRT Semi-Rapid 2
A34: 2 | B34: Maximum Vehicle Capacity | D34: =VLOOKUP(D33,'Assumptions and Thresholds'!$A$16:$D$20,4) -> 172 | E34: =VLOOKUP(E33,'Assumptions and Thresholds'!$A$16:$D$20,4) -> 172 | F34: =VLOOKUP(F33,'Assumptions and Thresholds'!$A$16:$D$20,4) -> 116
A35: 3 | B35: Minimum Service Frequency per hour for projected PHPD | D35: =$D14/D34 -> 58.13953488 | E35: =$D14/E34 -> 58.13953488 | F35: =$D14/F34 -> 86.20689655
A36: 4 | B36: Maximum Service Frequency per hour at capacity | D36: =VLOOKUP('DETAILED Evaluation'!D33,'Assumptions and Thresholds'!$A$16:$F$20,6,FALSE) -> 190 | E36: =VLOOKUP('DETAILED Evaluation'!E33,'Assumptions and Thresholds'!$A$16:$F$20,6,FALSE) -> 94 | F36: =VLOOKUP('DETAILED Evaluation'!F33,'Assumptions and Thresholds'!$A$16:$F$20,6,FALSE) -> 71
A37: 5 | B37: Does Mode Option meet Capacity Needs? | D37: =IF(D35>D36,"Over Capacity",IF(D35<VLOOKUP('DETAILED Evaluation'!D33,'Assumptions and Thresholds'!$A$16:$E$20,5),"Underutilized","Within Capacity")) -> Within Capacity | E37: =IF(E35>E36,"Over Capacity",IF(E35<VLOOKUP('DETAILED Evaluation'!E33,'Assumptions and Thresholds'!$A$16:$E$20,5),"Underutilized","Within Capacity")) -> Within Capacity | F37: =IF(F35>F36,"Over Capacity",IF(F35<VLOOKUP('DETAILED Evaluation'!F33,'Assumptions and Thresholds'!$A$16:$E$20,5),"Underutilized","Within Capacity")) -> Over Capacity
A38: 6 | B38: Do Alignment Needs Meet ROW Availability? | D38: =IF($D15="C",IF(VLOOKUP(TEXT(D33,0),'Assumptions and Thresholds'!$A16:$C20,3,FALSE)="C","YES","NO"),IF(D15="B",IF(OR((VLOOKUP(TEXT(D33,0),'Assumptions and Thresholds'!$A16:$C20,3,FALSE)="B"),(VLOOKUP(TEXT(D33,0),'Assumptions and Thresholds'!$A16:$C20,3,FALSE)= "C")),"YES","NO"), "YES")) -> YES | E38: =IF($D15="C",IF(VLOOKUP(TEXT(E33,0),'Assumptions and Thresholds'!$A16:$C20,3,FALSE)="C","YES","NO"),IF(D15="B",IF(OR((VLOOKUP(TEXT(E33,0),'Assumptions and Thresholds'!$A16:$C20,3,FALSE)="B"),(VLOOKUP(TEXT(E33,0),'Assumptions and Thresholds'!$A16:$C20,3,FALSE)= "C")),"YES","NO"), "YES")) -> YES | F38: =IF($D15="C",IF(VLOOKUP(TEXT(F33,0),'Assumptions and Thresholds'!$A16:$C20,3,FALSE)="C","YES","NO"),IF(D15="B",IF(OR((VLOOKUP(TEXT(F33,0),'Assumptions and Thresholds'!$A16:$C20,3,FALSE)="B"),(VLOOKUP(TEXT(F33,0),'Assumptions and Thresholds'!$A16:$C20,3,FALSE)= "C")),"YES","NO"), "YES")) -> YES
A39: 7 | B39: Indicative Total Annualized Cost per passenger-km at high PTD | D39: =VLOOKUP(D33,'Demand and Cost Thresholds'!$A$34:$B$38,2,FALSE) -> 0.4989575103 | E39: =VLOOKUP(E33,'Demand and Cost Thresholds'!$A$34:$B$38,2,FALSE) -> 0.4651458713 | F39: =VLOOKUP(F33,'Demand and Cost Thresholds'!$A$34:$B$38,2,FALSE) -> 0.4651458713
A40: 8 | B40: Indicative Total Annualized Cost per passenger-km at low PTD | D40: =VLOOKUP(D33,'Demand and Cost Thresholds'!$A$34:$C$38,3,FALSE) -> 0.679885027 | E40: =VLOOKUP(E33,'Demand and Cost Thresholds'!$A$34:$C$38,3,FALSE) -> 0.5445976374 | F40: =VLOOKUP(F33,'Demand and Cost Thresholds'!$A$34:$C$38,3,FALSE) -> 0.5445976374
B42: Detailed Mode Screening
B43: (High = 3; Medium = 2; Low = 1; None = 0)
A44: 1 | B44: Provides Adequate Capacity (3) | D44: =IF(D$37="Over Capacity",0,IF(D$37="Underutilized",1,IF(AND(D$37="Within Capacity",OR(VLOOKUP(D$33,'Demand and Cost Thresholds'!$A$34:$E$38,5)<'Demand and Cost Thresholds'!$C$31,VLOOKUP(D$33,'Demand and Cost Thresholds'!$A$34:$E$38,5)>'Demand and Cost Thresholds'!$B$31)),2,IF(AND(D$37="Within Capacity",VLOOKUP(D$33,'Demand and Cost Thresholds'!$A$34:$E$38,5)<'Demand and Cost Thresholds'!$B$31,VLOOKUP(D$33,'Demand and Cost Thresholds'!$A$34:$E$38,5)>'Demand and Cost Thresholds'!$C$31),3)))) -> 2 | E44: =IF(E$37="Over Capacity",0,IF(E$37="Underutilized",1,IF(AND(E$37="Within Capacity",OR(VLOOKUP(E$33,'Demand and Cost Thresholds'!$A$34:$E$38,5)<'Demand and Cost Thresholds'!$C$31,VLOOKUP(E$33,'Demand and Cost Thresholds'!$A$34:$E$38,5)>'Demand and Cost Thresholds'!$B$31)),2,IF(AND(E$37="Within Capacity",VLOOKUP(E$33,'Demand and Cost Thresholds'!$A$34:$E$38,5)<'Demand and Cost Thresholds'!$B$31,VLOOKUP(E$33,'Demand and Cost Thresholds'!$A$34:$E$38,5)>'Demand and Cost Thresholds'!$C$31),3)))) -> 2 | F44: =IF(F$37="Over Capacity",0,IF(F$37="Underutilized",1,IF(AND(F$37="Within Capacity",OR(VLOOKUP(F$33,'Demand and Cost Thresholds'!$A$34:$E$38,5)<'Demand and Cost Thresholds'!$C$31,VLOOKUP(F$33,'Demand and Cost Thresholds'!$A$34:$E$38,5)>'Demand and Cost Thresholds'!$B$31)),2,IF(AND(F$37="Within Capacity",VLOOKUP(F$33,'Demand and Cost Thresholds'!$A$34:$E$38,5)<'Demand and Cost Thresholds'!$B$31,VLOOKUP(F$33,'Demand and Cost Thresholds'!$A$34:$E$38,5)>'Demand and Cost Thresholds'!$C$31),3)))) -> 0
A45: 2 | B45: ROW Availability (Need vs. availability of dedicated corridors) (3) | D45: =IF(D38="YES",3,0) -> 3 | E45: =IF(E38="YES",3,0) -> 3 | F45: 3
A46: 3 | B46: Potential to Integrate Pedestrian Needs (Such as safe crossings) (2) | D46: =IF(VLOOKUP(TEXT(D33,0),'Assumptions and Thresholds'!$A15:$K20,11,FALSE)="High",0,IF(VLOOKUP(TEXT(D33,0),'Assumptions and Thresholds'!$A15:$K20,11,FALSE)="Moderate",1,2)) -> 0 | E46: =IF(VLOOKUP(TEXT(E33,0),'Assumptions and Thresholds'!$A15:$K20,11,FALSE)="High",0,IF(VLOOKUP(TEXT(E33,0),'Assumptions and Thresholds'!$A15:$K20,11,FALSE)="Moderate",1,2)) -> 2 | F46: =IF(VLOOKUP(TEXT(F33,0),'Assumptions and Thresholds'!$A15:$K20,11,FALSE)="High",0,IF(VLOOKUP(TEXT(F33,0),'Assumptions and Thresholds'!$A15:$K20,11,FALSE)="Moderate",1,2)) -> 2
A47: 4 | B47: Maintain livability (no noise and infrastructural clutter) (2) | D47: =IF(VLOOKUP(TEXT(D33,0),'Assumptions and Thresholds'!$A16:$L21,12,FALSE)="High",0,IF(VLOOKUP(TEXT(D33,0),'Assumptions and Thresholds'!$A16:$L21,12,FALSE)="Moderate",1,2)) -> 1 | E47: =IF(VLOOKUP(TEXT(E33,0),'Assumptions and Thresholds'!$A16:$L21,12,FALSE)="High",0,IF(VLOOKUP(TEXT(E33,0),'Assumptions and Thresholds'!$A16:$L21,12,FALSE)="Moderate",1,2)) -> 2 | F47: =IF(VLOOKUP(TEXT(F33,0),'Assumptions and Thresholds'!$A16:$L21,12,FALSE)="High",0,IF(VLOOKUP(TEXT(F33,0),'Assumptions and Thresholds'!$A16:$L21,12,FALSE)="Moderate",1,2)) -> 2
A48: 4 | B48: Reliability Factor (Potential for Delay) (2) | D48: =IF(VLOOKUP(TEXT(D33,0),'Assumptions and Thresholds'!$A16:$J20,10,FALSE)="High",2,IF(VLOOKUP(TEXT(D33,0),'Assumptions and Thresholds'!$A16:$J20,10,FALSE)="Moderate",1,0)) -> 2 | E48: =IF(VLOOKUP(TEXT(E33,0),'Assumptions and Thresholds'!$A16:$J20,10,FALSE)="High",2,IF(VLOOKUP(TEXT(E33,0),'Assumptions and Thresholds'!$A16:$J20,10,FALSE)="Moderate",1,0)) -> 1 | F48: =IF(VLOOKUP(TEXT(F33,0),'Assumptions and Thresholds'!$A16:$J20,10,FALSE)="High",2,IF(VLOOKUP(TEXT(F33,0),'Assumptions and Thresholds'!$A16:$J20,10,FALSE)="Moderate",1,0)) -> 1
A49: 5 | B49: High Estimate of TAC per PKT (High Cost = Low Score) (3) | D49: =VLOOKUP(D$33,'Demand and Cost Thresholds'!$A$40:$C$44,2,FALSE) -> 3 | E49: =VLOOKUP(E$33,'Demand and Cost Thresholds'!$A$40:$C$44,2,FALSE) -> 3 | F49: =VLOOKUP(F$33,'Demand and Cost Thresholds'!$A$40:$C$44,2,FALSE) -> 3
A50: 6 | B50: Low Estimate of TAC per PKT (High Cost = Low Score) (3) | D50: =VLOOKUP(D$33,'Demand and Cost Thresholds'!$A$40:$C$44,3,FALSE) -> 1 | E50: =VLOOKUP(E$33,'Demand and Cost Thresholds'!$A$40:$C$44,3,FALSE) -> 3 | F50: =VLOOKUP(F$33,'Demand and Cost Thresholds'!$A$40:$C$44,3,FALSE) -> 3
A51: 7 | B51: Ease of Implementation with respect to: Familiarity with Technology (2) | D51: =MIN(2,MAX(VLOOKUP(D33,'Drop-Down Values'!$Q$2:$S$6,2, FALSE),VLOOKUP('DETAILED Evaluation'!D33,'Drop-Down Values'!$Q$2:$S$6,3))) -> 1 | E51: =MIN(2,MAX(VLOOKUP(E33,'Drop-Down Values'!$Q$2:$S$6,2, FALSE),VLOOKUP('DETAILED Evaluation'!E33,'Drop-Down Values'!$Q$2:$S$6,3))) -> 2 | F51: =MIN(2,MAX(VLOOKUP(F33,'Drop-Down Values'!$Q$2:$S$6,2, FALSE),VLOOKUP('DETAILED Evaluation'!F33,'Drop-Down Values'!$Q$2:$S$6,3))) -> 2
B53: EVALUATION SCORE (Out of 20) | D53: =SUM(D44:D51) -> 13 | E53: =SUM(E44:E51) -> 18 | F53: =SUM(F44:F51) -> 16

Sheet GLOSSARY
A1: TERMINOLOGIES | B1: Acronyms | C1: Description | E1: RESULTS | F1: Description
A2: Capacity | C2: The maximum number of people that can be carried past a given location during a given time period under specified operating conditions, without unacceptable delay, hazard, or restriction, and with reasonable certainty | E2: FAVORABLE | F2: Likely to be a good choice for the input conditions unless local circumstances are not supportive.
A3: Historical Daily Peak Hour Factor | C3: The ratio of Peak Hour Peak Direction Passenger Demand for a typical route (i.e. representative of he system as a whole) to its total daily boardings in both directions. His factor helps to convert daily passenger flows into peak hour passenger flows. It should be ideally be determined by looking at historical data. Please note that this factor is usually higher for public transport as compared to total traffic. | E3: COMPETITIVE | F3: Likely to be a good choice for the input conditions if specific local circumstances are supportive.
A4: Local Transit | C4: Public transport operating on fixed routes with frequent stops (100-400 m apart), generally in mixed traffic on surface roadways, relying heavily on walk access and egress. | E4: MARGINAL | F4: Possibly a good choice for the input conditions if specific local conditions are strongly supportive.
A5: Local Transit Boardings | C5: The annual number of passengers boarding local transit vehicles, counting separately each boarding made in the course of single journey or trip between origin and destination. Also known as unlinked passenger trips (UPT). Boardings on regional services should not be included in city totals when using this tool. | E5: UNFAVORABLE | F5: Not likely to be a good choice for the input conditions
A6: Local Transit Service Area | C6: The reasonably contiguous area served by the local transit network, not including regional services. Indicative extent would be the area within 1 km of regularly served local stops. This area does not include portions of the metropolis connected to the local service area solely by regional services. | E6: OVER CAPACITY | F6: Demand under the input conditions is lilely to exceed capacity (as defined herein) under peak conditions.
A7: Mean Local Transit Trip Length | C7: The average distance traveled by one public transit boarding passenger, calculated by dividing total local transit person-km by total local transit boardings.
A8: Network Extent | C8: The number of kilometres of route in a public transport network, without double-counting kilometres where routes share the same path.
A9: Passenger Traffic Density | B9: PTD | C9: The total number annual transit passengers passing the average point along a system or route in both directions combined, formed by dividing system PKT by network extent (for a system) or route PKT by route length (for a single route).
A10: Passenger-Kilometers Travelled | B10: PKT | C10: The total distance travelled by passengers on transit vehicles (for a single route or a system), which may be determined by multiplying the number of unlinked passenger trips by the average length of such trips.
A11: Peak Hour Peak Direction Passenger Demand | B11: PHPD | C11: The number of transit passengers carried in the peak hour in the peak direction. This occurs almost universally on weekdays, and is measured for a single route at its maxmum load point.
A12: Projected Annual Rapid Transit Passenger Boardings in a Corridor/ Annual Corridor Ridership | C12: The estimated or projected annual passenger boardings for a specific rapid transit corridor of known length. The estimate should be consistent with operating characteristics (such as average speed) for the available ROW
A13: Rapid Transit | B13: RT | C13: Public transport operating on fixed routes at a significantly higher averge speed than local service, usually in exclusive rights-of-way and/or completely separated from surface traffic. Access depends on both walking and local public transport service. Stations are typically 800m-2km apart.
A14: Regional Transit | C14: Public transport operating on fixed routes within and outside the local service area, offering higher average speeds than even rapid transit, with average station spacings usually longer than 2 km. A large share of access may be by motorized transport.
A15: Right-of-Way | B15: ROW | C15: Land that is used for moving vehicles carrying passengers or goods, such as railways or highways. Rights-of-way may be identified, purchased, or reserved in advance for future transportation use, and may be requirred to construct elevated or underground rapid transit.
A16: RoW Class | C16: Classification of the type of operating environment of the RoW. ROW Class A = fully grade-separated ROW, Class B = at-grade lane separation, Class C = mixed traffic.
A17: Total Annualized Cost | B17: TAC | C17: Total annualized cost is the annualized value of the total net present cost expressed in per PKT.
A18: Vehicle Capacity | C18: The average number of people that a vehicle can be scheduled to carry at capacity (as deined herein)

Sheet Assumptions and Thresholds
B2: Standard Vehicle Types and Capacities
B3: Vehicle Types | C3: Vehicle Capacity (apprx)
B4: Bus Standard (12 m) | C4: 65
B5: Bus Articulated (18 m) | C5: 116
B6: Bus Bi-Articulated (24 m) | C6: 172
B7: LRT single-articulated vehicle ( 25 m) | C7: 167
B8: LRT train of four single-articulated vehicles | C8: 657
B9: Metro/Rapid train (small = 2 x 17 m) | C9: 287
B10: Metro/Rapid Train (large = 8 x 25 m) | C10: 1637
B11: Capacities based vehicle dimensions per TCQSM methods, using 6 persons per m2 of standee space and load diversity factors depending on train lengt.
A14: Rapid Transit Modes | B14: Right-of-Way | D14: Maximum Vehicle Capacity | E14: Frequencies (services/ direction/ hour) | G14: Passengers Peak Hour Per Direction | H14: Population+Jobs / Sq.Km within Transit Influence Zone | J14: Reliability Factor | K14: Potential to Create Barrier to Pedestrian Mobility | L14: Impact on Livability (Noise and Infrastructural clutter) | M14: Indicative Total Cost* per Passenger-Km Travelled (INITIAL ASSESSMENT)
B15: Description | C15: Class** | D15: Maximum | E15: Minimum | F15: Maximum | G15: Maximum | H15: Minimum | I15: Maximum | M15: Higher Case | N15: Lower Case
A16: BRT Rapid | B16: Physically separated busway or segregated bus lanes with continuous passing lane. Max vehicle length 24m | C16: A | D16: =C6 -> 172 | E16: 8 | F16: 190 | G16: =F16*D16 -> 32680 | H16: 10000 | I16: 30000 | J16: High | K16: High | L16: Moderate | M16: ='Demand and Cost Thresholds'!B25 -> 0.318008095 | N16: ='Demand and Cost Thresholds'!C25 -> 0.4301316392
A17: BRT Semi-Rapid 1 | B17: Dedicated at-grade lanes with passing lane at stations and 'spot' priority features. Max vehicle length 24m | C17: B | D17: =C6 -> 172 | E17: 6 | F17: 94 | G17: =F17*D17 -> 16168 | H17: 6000 | I17: 20000 | J17: Moderate | K17: Low | L17: Low | M17: ='Demand and Cost Thresholds'!B26 -> 0.361591847 | N17: ='Demand and Cost Thresholds'!C26 -> 0.4325871764
A18: BRT Semi-Rapid 2 | B18: Dedicated at-grade BRT lane with general traffic turns allowed at signals. Max vehicle length 18m | C18: B | D18: =C5 -> 116 | E18: 6 | F18: 71 | G18: 8236 | H18: 5000 | I18: 20000 | J18: Moderate | K18: Low | L18: Low | M18: ='Demand and Cost Thresholds'!B26 -> 0.361591847 | N18: ='Demand and Cost Thresholds'!C26 -> 0.4325871764
A19: LRT Semi-Rapid | B19: Dedicated tracks at grade. Maximum train length 150m | C19: B | D19: =C8 -> 657 | E19: 8 | F19: 40 | G19: 26280 | H19: 10000 | I19: 30000 | J19: Moderate | K19: Moderate | L19: Low | M19: ='Demand and Cost Thresholds'!B27 -> 0.3692912426 | N19: ='Demand and Cost Thresholds'!C27 -> 0.4775939644
A20: Metro/ Rail Rapid Transit | B20: Elevated double track | C20: A | D20: =C10 -> 1637 | E20: 10 | F20: 60 | G20: 98220 | H20: 30000 | I20: 60000 | J20: High | K20: High | L20: High | M20: ='Demand and Cost Thresholds'!B28 -> 0.3374931897 | N20: ='Demand and Cost Thresholds'!C28 -> 0.4787372742
B21: ** ROW Class A = fully grade-separated ROW, Class B = at-grade lane separation, Class C = mixed traffic
B22: * Cost estimates are based on the Luigi, Allen, Bruun Technology Selection Model
A24: Assumptions: | B24: The following modes are excluded in this assessment:
B25: · Local Bus – because it serves a local connector and feeder connection only and cannot be classified as "rapid"
B26: · Streetcar – because it operates in mixed traffic more often and cannot be classified as "rapid"
B27: · Commuter Rail – because it serves the regional transit function, not urban 'rapid'
B28: · Monorail / Skytrain (suspension rail) / cable cars – because it does not adapt itself to forming a network, an essential requirement for urban transit, could be used as feeder lines in atypical topographies as deemed necessary.
B29: · Personal Rapid Transit – because they are not a "public" transit system
B30: The right-of-way costs for real estate is not considered in this tool

Sheet Demand and Cost Thresholds (hidden)
A1: INPUT
A2: Service Area (km2) | B2: ='INITIAL Assessment'!D9 -> 3000
A3: Service Area Population | B3: ='INITIAL Assessment'!D10 -> 23305971
A4: Local Public Transport Annual Passenger-km Traveled | B4: ='INITIAL Assessment'!D21 -> 12355200000
A5: Corridor Length (km) | B5: ='DETAILED Evaluation'!D12 -> 22
A6: Estimated Annual Passengers (Boardings) | B6: ='DETAILED Evaluation'!D13 -> 12105000
A8: Intermediate/Working Values | B8: Higher Case | C8: Lower Case
A9: INITIAL ASSESSMENT
A10: Population per square km of service area | B10: =B3/B2 -> 7768.657 | C10: =B3/B2 -> 7768.657
A11: Post-rapid passenger-km per square km | B11: =1.8*B4/B2 -> 7413120 | C11: =1.4*B4/B2 -> 5765760
A12: Gross post-rapid passenger-km | B12: =$B$2*B11 -> 22239360000 | C12: =$B$2*C11 -> 17297280000
A13: Notional network route km per square km | B13: =0.6*EXP(1.735-0.28*LN($B$2))*EXP(-11.131+0.559*LN(B10)+0.327*LN(B11)) -> 0.1396754465 | C13: =1.275*EXP(1.735-0.28*LN($B$2))*EXP(-11.131+0.559*LN(C10)+0.327*LN(C11)) -> 0.2733938628
A14: Notional network route kilometres | B14: =B13*$B$2 -> 419.0263395 | C14: =C13*$B$2 -> 820.1815885
A15: Rapid transit share of gross PKT | B15: =1/(1+EXP(5.235-0.5-0.43197*LN(B11)+0.0926*LN(B10))) -> 0.7805258592 | C15: =1/(1+EXP(5.235+0.55-0.43197*LN(C11)+0.0926*LN(C10))) -> 0.5275154638
A16: Rapid transit person-km | B16: =B15*B12 -> 1.735839557e+10 | C16: =C15*C12 -> 9124582682
A17: Indicative Passenger Traffic Density (INITIAL) | B17: =B16/B14 -> 41425547.6 | C17: =C16/C14 -> 11125076.21
A18: DETAILED EVALUATION | G18: High | H18: Low
A19: Average Trip Length (km) | B19: =$B$5*($G$19+$G$20*LN($B$5)) -> 12.29127184 | C19: =$B$5*($H$19+$H$20*LN($B$5)) -> 5.861127998 | F19: Intercept | G19: 0.732195458 | H19: 0.442076308
A20: Indicative Passenger Traffic Density (DETAIL) | B20: =(B19/$B5)*$B6 -> 6762992.982 | C20: =(C19/$B5)*$B6 -> 3224952.474 | F20: ln(L) | G20: -0.05613034636 | H20: -0.05682917709
A22: INITIAL COST ASSESSMENT
A23: PTD in millions | B23: =B17/1000000 -> 41.4255476 | C23: =C17/1000000 -> 11.12507621 | F23: Coeff A | G23: Coeff B | H23: Coeff C
A24: Reference Cost per PKT | B24: =MIN(1,($F24+$G$24*B$23+$H24/B$23)) -> 0.3763761071 | C24: =MIN(1,$F24+$G$24*C$23+$H24/C$23) -> 0.4452557361 | E24: Capacity | F24: 0.4217087218 | G24: -0.001343891893 | H24: 0.4282922282
A25: BRT A Indicative Total Cost per PKT | B25: =($F25+$G$24*B$23+$H25/B$23) -> 0.318008095 | C25: =$F25+$G$24*C$23+$H25/C$23 -> 0.4301316392 | E25: 33.20288 | F25: 0.3474633378 | G25: -0.0009104284234 | H25: 1.086021052
A26: BRT B Indicative Total Cost per PKT | B26: =($F26+$G$24*B$23+$H26/B$23) -> 0.361591847 | C26: =$F26+$G$24*C$23+$H26/C$23 -> 0.4325871764 | E26: 16.426688 | F26: 0.4061476642 | G26: -0.0003274149736 | H26: 0.4604714872
A27: LRT B Indicative Total Cost per PKT | B27: =($F27+$G$24*B$23+$H27/B$23) -> 0.3692912426 | C27: =$F27+$G$24*C$23+$H27/C$23 -> 0.4775939644 | E27: 26.70048 | F27: 0.4001493329 | G27: -0.0002021755195 | H27: 1.027907327
A28: Metro Indicative Total Cost per PKT | B28: =($F28+$G$24*B$23+$H28/B$23) -> 0.3374931897 | C28: =$F28+$G$24*C$23+$H28/C$23 -> 0.4787372742 | E28: 99.79152 | F28: 0.3562565781 | G28: -0.0004357808671 | H28: 1.528936978
A30: DETAILED COST ASSESSMENT
A31: PTD in millions | B31: =B20/1000000 -> 6.762992982 | C31: =C20/1000000 -> 3.224952474 | F31: Coeff A | G31: Coeff B | H31: Coeff C | J31: Lookup
A32: Reference Cost per PKT | B32: =MIN(1,$F32+$G$32*B$31+$H32/B$31) -> 0.4759487901 | C32: =MIN(1,($F32+$G$32*C$31+$H32/C$31)) -> 0.5501804831 | E32: Capacity | F32: 0.4217087218 | G32: -0.001343891893 | H32: 0.4282922282 | J32: Ratio | K32: Rating
A33: Indicative Total Cost per PKT | J33: 0 | K33: 3
A34: BRT Rapid | B34: =MIN(1,$F34+$G$32*B$31+$H34/B$31) -> 0.4989575103 | C34: =MIN(1,($F34+$G$32*C$31+$H34/C$31)) -> 0.679885027 | E34: =32680*1016/1000000 -> 33.20288 | F34: 0.3474633378 | G34: -0.0009104284234 | H34: 1.086021052 | J34: 1.05 | K34: 2
A35: BRT Semi-Rapid 1 | B35: =MIN(1,$F35+$G$32*B$31+$H35/B$31) -> 0.4651458713 | C35: =MIN(1,($F35+$G$32*C$31+$H35/C$31)) -> 0.5445976374 | E35: =16168*1016/1000000 -> 16.426688 | F35: 0.4061476642 | G35: -0.0003274149736 | H35: 0.4604714872 | J35: 1.15 | K35: 1
A36: BRT Semi-Rapid 2 | B36: =MIN(1,$F36+$G$32*B$31+$H36/B$31) -> 0.4651458713 | C36: =MIN(1,($F36+$G$32*C$31+$H36/C$31)) -> 0.5445976374 | E36: =16168*1016/1000000 -> 16.426688 | F36: 0.4061476642 | G36: -0.0003274149736 | H36: 0.4604714872 | J36: 1.35 | K36: 0
A37: LRT Semi-Rapid | B37: =MIN(1,$F37+$G$32*B$31+$H37/B$31) -> 0.543050605 | C37: =MIN(1,($F37+$G$32*C$31+$H37/C$31)) -> 0.7145509967 | E37: =26280*1016/1000000 -> 26.70048 | F37: 0.4001493329 | G37: -0.0002021755195 | H37: 1.027907327 | K37: 0
A38: Metro/ Rail Rapid Transit | B38: =MIN(1,$F38+$G$32*B$31+$H38/B$31) -> 0.5732418618 | C38: =MIN(1,($F38+$G$32*C$31+$H38/C$31)) -> 0.8260185626 | E38: =98220*1016/1000000 -> 99.79152 | F38: 0.3562565781 | G38: -0.0004357808671 | H38: 1.528936978
A39: Results - Total Cost Rating
A40: BRT Rapid | B40: =IF(B$31>$E34,$K$37,VLOOKUP(B34/B$32,$J$33:$K$36,2)) -> 3 | C40: =IF(C$31>$E34,$K$37,VLOOKUP(C34/C$32,$J$33:$K$36,2)) -> 1
A41: BRT Semi-Rapid 1 | B41: =IF(B$31>$E35,$K$37,VLOOKUP(B35/B$32,$J$33:$K$36,2)) -> 3 | C41: =IF(C$31>$E35,$K$37,VLOOKUP(C35/C$32,$J$33:$K$36,2)) -> 3
A42: BRT Semi-Rapid 2 | B42: =IF(B$31>$E36,$K$37,VLOOKUP(B36/B$32,$J$33:$K$36,2)) -> 3 | C42: =IF(C$31>$E35,$K$37,VLOOKUP(C35/C$32,$J$33:$K$36,2)) -> 3
A43: LRT Semi-Rapid | B43: =IF(B$31>$E37,$K$37,VLOOKUP(B37/B$32,$J$33:$K$36,2)) -> 2 | C43: =IF(C$31>$E37,$K$37,VLOOKUP(C37/C$32,$J$33:$K$36,2)) -> 1
A44: Metro/ Rail Rapid Transit | B44: =IF(B$31>$E38,$K$37,VLOOKUP(B38/B$32,$J$33:$K$36,2)) -> 1 | C44: =IF(C$31>$E38,$K$37,VLOOKUP(C38/C$32,$J$33:$K$36,2)) -> 0

Sheet Drop-Down Values (hidden)
A1: Daily Transit Traffic to Peak Transit Traffic Factor | B1: SELECT | E1: Score for Screening | F1: SELECT | H1: ROW Dedication Class | I1: SELECT | K1: COST LOOKUP | N1: Subjective-Questions | O1: SELECT | Q1: Mode | R1: Local Tech Sum | S1: Country Tech Sum | T1: Is there an electrified regional rail in the metro area? | U1: Is there a local electrified rail (streetcar or tram) in the metro area? | V1: Are articulated buses operated in the local service in the metro area? | W1: Do exclusive bus lanes exist in the metro area? | X1: Is there metro elsewhere in the country | Y1: Is there BRT B elsewhere in the country | Z1: Is there BRT A elsewhere in the country
B2: 0.02 | F2: 2 | I2: A | K2: 0 | L2: FAVORABLE | O2: NO | Q2: BRT Rapid | R2: =SUM(T2:W2) -> 0 | S2: =SUM(X2:Z2) -> 1 | T2: 0 | U2: 0 | V2: =IF('DETAILED Evaluation'!$D$20="YES",1,0) -> 0 | W2: 0 | X2: 0 | Y2: 0 | Z2: =IF('DETAILED Evaluation'!$D$24="YES",1,0) -> 1
B3: 0.03 | F3: 1 | I3: B | K3: 1.05 | L3: COMPETITIVE | O3: YES | Q3: BRT Semi-Rapid 1 | R3: =SUM(T3:W3) -> 2 | S3: =SUM(X3:Z3) -> 2 | T3: 0 | U3: 0 | V3: 1 | W3: =IF('DETAILED Evaluation'!$D$21="YES",1,0) -> 1 | X3: 0 | Y3: =IF('DETAILED Evaluation'!$D$23="YES",1,0) -> 1 | Z3: =IF('DETAILED Evaluation'!$D$24="YES",1,0) -> 1
B4: 0.04 | F4: 0 | I4: C | K4: 1.15 | L4: MARGINAL | Q4: BRT Semi-Rapid 2 | R4: =SUM(T4:W4) -> 1 | S4: =SUM(X4:Z4) -> 2 | T4: 0 | U4: 0 | V4: =IF('DETAILED Evaluation'!$D$20="YES",1,0) -> 0 | W4: =IF('DETAILED Evaluation'!$D$21="YES",1,0) -> 1 | X4: 0 | Y4: =IF('DETAILED Evaluation'!$D$23="YES",1,0) -> 1 | Z4: =IF('DETAILED Evaluation'!$D$24="YES",1,0) -> 1
B5: 0.05 | K5: 1.35 | L5: UNFAVORABLE | Q5: LRT Semi-Rapid | R5: =SUM(T5:W5) -> 1 | S5: =SUM(X5:Z5) -> 0 | T5: =IF('DETAILED Evaluation'!$D$18="YES",1,0) -> 1 | U5: =IF('DETAILED Evaluation'!$D$19="YES",1,0) -> 0 | V5: 0 | W5: 0 | X5: 0 | Y5: 0 | Z5: 0
B6: 0.06 | L6: OVER CAPACITY | Q6: Metro/ Rail Rapid Transit | R6: =SUM(T6:W6) -> 2 | S6: =SUM(X6:Z6) -> 1 | T6: =IF('DETAILED Evaluation'!$D$18="YES",2,0) -> 2 | U6: 0 | V6: 0 | W6: 0 | X6: 1 | Y6: 0 | Z6: 0
B7: 0.07
B8: 0.08
B9: 0.09
B10: 0.1 | K10: Ratio of Notional PHPD to Capacity | L10: Rating
B11: 0.11 | K11: 0 | L11: UNFAVORABLE | M11: does not use investment adequately)
B12: 0.12 | K12: 0.1 | L12: MARGINAL
B13: 0.13 | K13: 0.25 | L13: FAVORABLE
B14: 0.14 | K14: 0.85 | L14: UNFAVORABLE
B15: 0.15 | K15: 1 | L15: OVER CAPACITY
